[Event "Qatar Masters 2024"]
[Site "Doha"]
[Date "2024.12.03"]
[Round "1.66"]
[White "Rakhmatullaev, Almas"]
[Black "Al Hosani, Omran"]
[Result "1/2-1/2"]
[Annotator "TA"]
[ECO "B40"]
[WhiteElo "2410"]
[BlackElo "2227"]
[PlyCount "134"]
[EventDate "2024.11.24"]
[EventType "swiss"]
[EventCountry "QAT"]
[SourceTitle "playchess.com"]
[Source "ChessBase"]
[SourceQuality "1"]
[TimeControl "40/5400+30:1800+30"]

{[%evp 9,134,11,10,10,6,8,26,0,0,0,0,7,4,10,6,0,0,2,0,1,0,0,77,64,82,63,80,77,98,100,108,109,110,64,64,38,52,52,83,35,31,-35,0,-12,0,0,0,-3,-4,-94,-98,-168,-175,-162,-136,-164,-172,-260,-222,-195,-4,-4,-4,-4,26,0,0,0,0,0,0,0,0,0,0,0,0,0,0,0,0,0,0,0,0,0,0,-8,0,0,0,0,0,0,0,0,0,0,0,0,0,0,24,-12,-12,-10,0,0,0,0,20,34,75,0,0,0,0,0,0,0,0,0,0,0,0,0,75]} 1. e4 {[%emt 0:00:52]} c5 {[%emt 0:00:10]} 2. Nf3 {[%emt 0:00:10]} e6 {[%emt 0:00:08]} 3. g3 {[%emt 0:00:07]} Nc6 {[%emt 0:00:08]} 4. Bg2 {[%emt 0:00:10]} Nf6 {[%emt 0:00:05]} 5. Qe2 {[%emt 0:00:05]} e5 {[%emt 0:00:07]} 6. O-O {[%emt 0:00:06]} Be7 {[%emt 0:00:10]} 7. c3 {[%emt 0:00:07][%cal Od2d4]} d6 {[%emt 0:00:12]} 8. Na3 {[%emt 0:00:11]} O-O {[%emt 0:00:11]} 9. Nc2 {[%emt 0:00:05]} Re8 {[%emt 0:00:44]} 10. d3 {[%emt 0:00:08]} Be6 {[%emt 0:14:25]} 11. Bg5 {[%emt 0:00:20]} b5 {[%emt 0:12:02]} 12. a3 {[%emt 0:01:38]} Rb8 {[%emt 0:03:56]} 13. Ne3 {[%emt 0:00:40]} h6 {[%emt 0:01:07]} 14. Bxf6 {[%emt 0:01:13]} Bxf6 {[%emt 0:00:08]} 15. Nd2 {[%emt 0:00:28]} b4 {[%emt 0:03:17]} (15... Ne7 $11) 16. axb4 $16 {[%emt 0:00:08]} cxb4 {[%emt 0:00:05]} 17. Ndc4 {[%emt 0:00:26]} Qd7 {[%emt 0:03:55][%cal Oa7a5]} 18. Nd5 {[%emt 0:05:05]} Bxd5 {[%emt 0:04:11]} 19. exd5 {[%emt 0:00:05]} Ne7 {[%emt 0:00:06][%cal Bc6e7,Be7c8,Bc8b6,Bb6a4,Ba4c3,Bc3e4][%mdl 32]} 20. Ra6 {[%emt 0:00:25]} Nc8 {[%emt 0:00:11]} 21. Bf3 {[%emt 0:08:23] White is more active.} (21. Qh5 $16) 21... Nb6 $14 {[%emt 0:06:42]} 22. Ne3 {[%emt 0:18:56]} bxc3 {[%emt 0:01:12]} 23. bxc3 {[%emt 0:00:08]} Na4 {[%emt 0:01:43]} 24. Bg4 {[%emt 0:03:58]} (24. Rc6 $16) 24... Nxc3 {[%emt 0:07:06]} 25. Qf3 {[%emt 0:19:54]} (25. Qc2 $14 Qb5 26. Rxd6) 25... Qd8 {[%emt 0:14:29]} (25... Qb5 {is interesting.} 26. Rxa7 Qxd3 27. Qf5 Qd4) 26. Rxa7 {[%emt 0:02:55]} e4 {[%emt 0:07:47]} 27. dxe4 {[%emt 0:00:15]} Nxe4 {[%emt 0:00:10]} 28. Rd7 {[%emt 0:11:52]} Qb6 {[%emt 0:01:32]} 29. Bh5 {[%emt 0:01:13] [#]} (29. Qf4 $1 $11) 29... Nd2 $1 $17 {[%emt 0:13:00][%csl LRf1,LRf3]} 30. Bxf7+ {[%emt 0:18:54] White is weak on the dark squares} (30. Qf4 $17 Nxf1 31. Bxf7+ (31. Ng4 Kh8 $11) 31... Kf8 (31... Kh8 32. Rxd6 Qc7 33. Rxf6 $17) 32. Nxf1) 30... Kh8 $19 {[%emt 0:00:06]} 31. Qd1 {[%emt 0:01:47]} Nxf1 {[%emt 0:00:33]} 32. Nxf1 {[%emt 0:00:16]} (32. Ng4 $2 Qb1 33. Qxb1 Rxb1 $19) 32... Rf8 {[%emt 0:01:20]} 33. Kg2 {[%emt 0:01:27]} (33. Ne3 $142) 33... Qb5 {[%emt 0:00:45]} 34. Be6 {[%emt 0:01:23][%cal Of1e3] [#]} Qc5 $2 {[%emt 0:01:24]} ({Black should play} 34... Qb2 $1 $19 {...Bd4 would now be deadly.} 35. Qf3 Be7) 35. Ne3 $1 $11 {[%emt 0:02:01]} Rb2 {[%emt 0:00:45]} 36. Qf3 {[%emt 0:00:30]} Rbb8 {[%emt 0:03:22]} 37. Nf5 {[%emt 0:01:21]} Be5 $1 {[%emt 0:01:02]} 38. Rf7 {[%emt 0:01:07]} Rxf7 {[%emt 0:00:26]} 39. Bxf7 {[%emt 0:00:02]} Qc3 {[%emt 0:00:42]} 40. Qxc3 {[%emt 0:00:58]} Bxc3 {[%emt 0:00:11]} 41. Nxd6 {[%emt 0:30:05][%mdl 4096] Endgame KRB-KBN} Bb4 {[%emt 0:30:47]} 42. Ne4 {[%emt 0:00:18]} Rf8 {[%emt 0:00:08]} 43. Be6 {[%emt 0:00:51]} g6 {[%emt 0:00:15]} 44. d6 {[%emt 0:00:52]} Kg7 {[%emt 0:01:10]} 45. f4 {[%emt 0:00:16]} Rd8 {[%emt 0:00:00]} 46. d7 {[%emt 0:00:00]} Kf8 {[%emt 0:00:00]} 47. h4 {[%emt 0:00:00]} Ke7 {[%emt 0:00:00]} 48. Bh3 {[%emt 0:00:00]} Ra8 {[%emt 0:00:00]} 49. f5 {[%emt 0:00:00]} gxf5 {[%emt 0:00:00]} 50. Bxf5 {[%emt 0:00:00]} Rf8 {[%emt 0:00:00]} 51. Bg4 {[%emt 0:00:00]} Ba5 {[%emt 0:00:00]} 52. h5 {[%emt 0:00:00]} Bb6 {[%emt 0:00:00]} 53. Bh3 {[%emt 0:00:00]} Bd4 {[%emt 0:00:00]} 54. Bg4 {[%emt 0:00:00]} Kd8 {[%emt 0:00:00]} 55. Nd6 {[%emt 0:00:00]} Be5 {[%emt 0:00:00]} 56. Nc4 {[%emt 0:00:00]} (56. Nb7+ {simplifies} Ke7 57. d8=N Rxd8 58. Nxd8 Kxd8 59. Bf3) 56... Bc7 {[%emt 0:00:00][%mdl 1024] Black has compensation.} 57. Ne3 {[%emt 0:00:00]} Bb8 {[%emt 0:00:00]} 58. Nd5 {[%emt 0:00:00]} Bd6 {[%emt 0:00:00]} 59. Be6 {[%emt 0:00:00]} Be7 {[%emt 0:03:27]} 60. g4 {[%emt 0:00:00]} Rf6 {[%emt 0:00:12]} 61. Bf5 {[%emt 0:00:00]} ({White should try} 61. Nxf6 $16 Bxf6 62. Bf5) 61... Rd6 {[%emt 0:00:31]} 62. Ne3 {[%emt 0:00:00]} Rd4 {[%emt 0:00:42]} 63. Kf3 {[%emt 0:00:00]} Bg5 {[%emt 0:00:27]} 64. Nc2 {[%emt 0:00:00]} Rc4 {[%emt 0:00:09]} 65. Ne1 {[%emt 0:00:00]} Rc3+ {[%emt 0:00:38]} 66. Kg2 {[%emt 0:00:00]} Bh4 {[%emt 0:00:06]} 67. Nf3 {[%emt 0:00:00]} Rxf3 {[%emt 0:00:11]} 1/2-1/2

[Event "Qatar Masters 2024"]
[Site "Doha"]
[Date "2024.12.03"]
[Round "1.67"]
[White "Khoder, Akram"]
[Black "Ahmad, Khagan"]
[Result "1/2-1/2"]
[Annotator "TA"]
[ECO "E73"]
[WhiteElo "2232"]
[BlackElo "2406"]
[PlyCount "83"]
[EventDate "2024.11.24"]
[EventType "swiss"]
[EventCountry "QAT"]
[SourceTitle "playchess.com"]
[Source "ChessBase"]
[SourceQuality "1"]
[TimeControl "40/5400+30:1800+30"]

{[%evp 14,83,71,58,73,71,55,54,75,75,77,53,41,0,0,0,0,0,2,-65,-68,-60,-69,-77,-79,-84,-83,-88,-84,-108,-103,-211,-35,-43,-15,-15,-19,-24,-47,-147,-164,-156,-39,-43,-35,-33,-22,-35,414,410,396,393,400,438,389,471,470,444,446,195,173,147,147,137,135,134,540,528,440,148,149,143]} 1. d4 {[%emt 0:00:15]} Nf6 {[%emt 0:00:13]} 2. c4 {[%emt 0:00:17]} g6 {[%emt 0:00:15]} 3. Nc3 {[%emt 0:00:11]} Bg7 {[%emt 0:00:06]} 4. e4 {[%emt 0:00:05]} d6 {[%emt 0:00:02]} 5. Be2 {[%emt 0:00:27]} O-O {[%emt 0:00:13]} 6. Be3 {[%emt 0:00:07]} e5 {[%emt 0:00:59]} 7. d5 {[%emt 0:00:11]} a5 {[%emt 0:00:52]} 8. g4 {[%emt 0:00:36][%cal Bg2g4,Bg4g5][%mdl 32]} Na6 {[%emt 0:00:51]} 9. g5 {[%emt 0:00:22]} Nd7 {[%emt 0:01:56]} 10. h4 {[%emt 0:00:53][%cal Bh2h4,Bh4h5,Bh5h6][%mdl 32]} Ndc5 {[%emt 0:05:48] White is slightly better.} 11. Qd2 {[%emt 0:05:40]} c6 {[%emt 0:00:26]} 12. h5 {[%emt 0:04:46]} cxd5 {[%emt 0:00:09]} 13. cxd5 {[%emt 0:00:14]} Bd7 $1 {[%emt 0:06:59]} 14. h6 {[%emt 0:08:28]} Bh8 {[%emt 0:00:05][%cal Ob7b5]} 15. f3 {[%emt 0:01:33]} Qe8 {[%emt 0:05:44]} 16. O-O-O {[%emt 0:12:29]} (16. Nh3 $11) 16... b5 $15 {[%emt 0:01:54] Threatens to win with ...b4.} 17. Re1 {[%emt 0:00:42]} b4 {[%emt 0:02:03]} 18. Nd1 {[%emt 0:00:06]} Ba4 {[%emt 0:16:29]} 19. Bxa6 {[%emt 0:07:21]} Nxa6 {[%emt 0:00:28]} 20. Kb1 {[%emt 0:01:17]} Qd7 {[%emt 0:02:52]} 21. Ne2 {[%emt 0:03:01]} Rfc8 {[%emt 0:01:42]} 22. b3 {[%emt 0:01:26]} (22. Nc1 $17 {was called for.}) 22... Bb5 $2 {[%emt 0:00:23]} (22... Bxb3 $1 $19 {Strongly threatening ...Bc2+.} 23. axb3 a4) 23. Nb2 {[%emt 0:00:16]} a4 {[%emt 0:03:24]} 24. bxa4 {[%emt 0:14:44]} (24. Rc1 axb3 25. Rxc8+ Rxc8 26. axb3 Qe8) 24... Bxa4 {[%emt 0:00:08]} 25. Rc1 {[%emt 0:00:03] Dodges Bc2+. Active counter play!} Rcb8 {[%emt 0:01:02]} 26. Nc4 {[%emt 0:00:48]} (26. Nxa4 $15 Qxa4 27. Qb2) 26... Qd8 $1 $17 {[%emt 0:00:37]} 27. Qb2 {[%emt 0:21:59][%cal Oe2d4]} Rb5 {[%emt 0:07:53]} (27... Nc5 $17 {...b3 would now be deadly.} 28. Bxc5 dxc5) 28. Nd4 $15 {[%emt 0:07:51] Dodges b3} exd4 {[%emt 0:14:54]} 29. Bxd4 {[%emt 0:00:04] [#]} Bc2+ $1 {[%emt 0:00:29]} 30. Kxc2 {[%emt 0:05:25]} (30. Qxc2 $2 Bxd4 31. Qg2 Nc5 $19) (30. Rxc2 b3 31. axb3 Nc5 (31... Bxd4 $2 32. Qxd4 f6 33. Rb2 $18) 32. Bxh8 Rxb3 $15 (32... Nxb3 33. Qg7#)) 30... b3+ $2 {[%emt 0:00:07][%mdl 8192]} (30... Nc5 $1 $15 {keeps the upper hand.} 31. Bf6 (31. Bxh8 $2 Rxa2 32. Qxa2 b3+ $19) 31... Bxf6 32. Qxf6 Rxa2+ 33. Kb1 Qxf6 34. gxf6 Ra8 (34... Ra6 35. e5 $11)) 31. axb3 $18 {[%emt 0:03:44]} Nb4+ {[%emt 0:00:01]} 32. Kd1 {[%emt 0:00:29]} Ra2 {[%emt 0:00:33] [#]} 33. Qc3 {[%emt 0:00:21]} (33. Bxh8 Rxb2 34. Bf6 Qb8 (34... Rxd5+ $2 35. exd5 Qa8 36. Bxb2 $18) 35. Nxb2 Na6 $18) 33... Nxd5 {[%emt 0:00:07]} 34. exd5 {[%emt 0:00:42]} Rxd5 {[%emt 0:00:04]} 35. Rh4 {[%emt 0:00:24][%cal Oc4b6] And now Nb6! would win.} Rxg5 {[%emt 0:13:57]} 36. Qe3 {[%emt 0:00:39] Prevents Rg1+.} (36. Bxh8 {gets mated.} Rg1+) (36. Nb6 $142 Rf2 (36... Rg1+ $2 37. Bxg1 Bxc3 38. Rxc3 $18) 37. Re4 Rf1+ 38. Kc2 (38. Re1 Rxe1+ 39. Kxe1 Rc5 $14) 38... Rxc1+ (38... Bxd4 $2 39. Qxd4 Rxc1+ 40. Kxc1 $18) 39. Kxc1) 36... Bxd4 {[%emt 0:00:57]} 37. Qxd4 {[%emt 0:00:33][%csl Gh6][%cal Rd4g7]} Rd5 {[%emt 0:00:26]} 38. Qxd5 {[%emt 0:00:13]} Qxh4 {[%emt 0:00:01][%cal Rh4h1]} 39. Nb2 $1 {[%emt 0:00:47]} (39. Qxd6 $2 Qh1#) 39... Qh3 {[%emt 0:00:34][%mdl 8192] [#] Prevents Rc8+.} (39... Qh1+ $16 40. Kc2 Qxh6 (40... Qh2+ $2 41. Kd3 $18) 41. Qxd6 (41. Kb1 Ra1+ 42. Kxa1 Qxc1+ 43. Ka2 Qe3 $18) 41... Ra8) 40. Rc2 $1 {[%emt 0:00:24]} Ra1+ {[%emt 0:01:08]} 41. Kd2 $2 {[%emt 0:30:36]} (41. Ke2 $18 {is the precise move to win.}) 41... Qxh6+ $16 {[%emt 0:30:06]} 42. Kd3 {[%emt 0:00:00] Weighted Error Value: White=0.32/Black=0.37.  Loses game:     	---       	Black=2      Missed win:     	White=1     	Black=1      Mistake:       	White=4     	Black=1      Inaccurate:     	White=1     	Black=1      OK:         	White=13    	Black=15     Best:        	White=5     	Black=3      Strong:       	White=2     	Black=2} 1/2-1/2

[Event "Qatar Masters 2024"]
[Site "Doha"]
[Date "2024.12.03"]
[Round "1.68"]
[White "Socko, Monika"]
[Black "Luong Phuong Hanh"]
[Result "1-0"]
[Annotator "TA"]
[ECO "C08"]
[WhiteElo "2403"]
[BlackElo "2216"]
[PlyCount "85"]
[EventDate "2024.11.24"]
[EventType "swiss"]
[EventCountry "QAT"]
[SourceTitle "playchess.com"]
[Source "ChessBase"]
[SourceQuality "1"]
[TimeControl "40/5400+30:1800+30"]

{[%evp 19,85,24,27,48,41,42,56,55,48,46,95,104,93,103,106,103,107,110,112,109,103,108,110,107,116,116,132,120,133,123,125,125,129,132,134,139,147,140,154,154,157,144,157,149,191,188,235,232,232,227,225,217,511,481,522,425,414,424,546,514,588,401,516,497,936,920,877,870]} 1. e4 {[%emt 0:00:03]} e6 {[%emt 0:00:08]} 2. d4 {[%emt 0:00:25]} d5 {[%emt 0:00:07]} 3. Nd2 {[%emt 0:01:13]} c5 {[%emt 0:00:12]} 4. exd5 {[%emt 0:01:55]} exd5 {[%emt 0:00:28]} 5. Ngf3 {[%emt 0:01:35]} Nf6 {[%emt 0:00:54]} 6. Bb5+ {[%emt 0:01:08]} Bd7 {[%emt 0:00:27]} 7. Bxd7+ {[%emt 0:01:06]} Nbxd7 {[%emt 0:00:17]} 8. O-O {[%emt 0:01:09]} Be7 {[%emt 0:00:12]} 9. dxc5 {[%emt 0:01:27]} Nxc5 {[%emt 0:00:47]} 10. Nb3 {[%emt 0:01:28]} O-O {[%emt 0:02:57]} 11. Nxc5 {[%emt 0:01:08]} Bxc5 {[%emt 0:00:08]} 12. Bg5 {[%emt 0:00:39]} Rc8 {[%emt 0:04:35]} 13. c3 {[%emt 0:01:59]} Be7 {[%emt 0:03:27]} 14. Qb3 {[%emt 0:10:04]} Ne4 {[%emt 0:08:03]} (14... h6 $14 15. Bh4 Re8) 15. Bxe7 $16 {[%emt 0:03:45]} Qxe7 {[%emt 0:00:06]} 16. Qxd5 {[%emt 0:01:01]} Rcd8 {[%emt 0:07:40]} 17. Qf5 {[%emt 0:03:19]} Nd2 {[%emt 0:03:36]} 18. Rfe1 {[%emt 0:02:58]} Nxf3+ {[%emt 0:05:26]} 19. Qxf3 {[%emt 0:00:04]} ({But not} 19. gxf3 $6 Qd6 $11) 19... Qc7 {[%emt 0:00:18]} 20. Rad1 {[%emt 0:00:55]} Rxd1 {[%emt 0:02:54]} 21. Rxd1 {[%emt 0:00:09][%mdl 4096] Endgame KQR-KQR. White is a pawn up.} h6 {[%emt 0:01:06]} 22. g3 {[%emt 0:01:28] White is more active.} Re8 {[%emt 0:00:52]} 23. Kg2 {[%emt 0:00:30]} Re6 {[%emt 0:00:19]} 24. Rd2 {[%emt 0:01:08]} g6 {[%emt 0:09:13]} 25. Qd5 {[%emt 0:01:23]} Re7 {[%emt 0:06:25]} 26. c4 {[%emt 0:00:44]} b6 {[%emt 0:05:18]} 27. Qd8+ {[%emt 0:03:19]} Kg7 {[%emt 0:01:53]} 28. Qxc7 {[%emt 0:00:33]} Rxc7 {[%emt 0:00:01] KR-KR. White is a pawn up.} 29. b3 {[%emt 0:00:04][%cal Bb2b3,Bb3b4][%mdl 32]} Kf6 {[%emt 0:02:35]} 30. Kf3 {[%emt 0:00:28]} Ke6 {[%emt 0:00:39]} 31. Ke4 {[%emt 0:00:35]} f5+ {[%emt 0:02:31]} 32. Kd4 {[%emt 0:05:07]} Kf6 {[%emt 0:09:35]} (32... Rd7+ {was worth a try.} 33. Kc3 Rc7) 33. b4 $18 {[%emt 0:01:42]} Re7 {[%emt 0:05:05]} 34. c5 {[%emt 0:08:54]} Re4+ {[%emt 0:00:48]} 35. Kc3 {[%emt 0:00:28]} b5 $2 {[%emt 0:01:19]} (35... bxc5 36. bxc5 Ke7) 36. Rd6+ {[%emt 0:05:07]} Kg5 {[%emt 0:00:07]} 37. Rd4 {[%emt 0:00:27] and Rxe4 would now be decisive} Re1 {[%emt 0:00:19]} 38. Rd2 {[%emt 0:03:27]} Re4 {[%emt 0:02:43]} 39. Kb3 {[%emt 0:00:16]} Re7 {[%emt 0:01:27]} 40. c6 {[%emt 0:02:45]} Rc7 {[%emt 0:00:22]} 41. Rd6 {[%emt 0:30:14]} Kh5 {[%emt 0:30:47]} (41... Re7 $142 42. f3 Rg7) 42. Kc3 {[%emt 0:00:46]} g5 {[%emt 0:00:26]} 43. Kd4 {[%emt 0:00:21]} 1-0

[Event "Qatar Masters 2024"]
[Site "Doha"]
[Date "2024.12.03"]
[Round "1.69"]
[White "Sultan, Ibrahim"]
[Black "Nazari, Arad"]
[Result "0-1"]
[Annotator "TA"]
[ECO "D30"]
[WhiteElo "2205"]
[BlackElo "2401"]
[PlyCount "180"]
[EventDate "2024.11.24"]
[EventType "swiss"]
[EventCountry "QAT"]
[SourceTitle "playchess.com"]
[Source "ChessBase"]
[SourceQuality "1"]
[TimeControl "40/5400+30:1800+30"]

{[%evp 77,180,0,3,4,60,18,34,0,0,8,143,83,77,22,27,47,47,60,379,362,390,391,368,160,143,0,574,494,438,152,501,121,128,121,99,0,698,677,525,0,104,0,0,-131,-131,-131,-129,-132,-144,-146,-153,-153,-129,-129,-129,-129,-129,-129,-129,-169,-169,-169,-169,-169,-169,-169,-169,-169,-169,-169,-169,-206,-169,-206,-177,-201,-201,-201,-169,-201,-201,-201,-201,-201,-201,-206,-201,-201,0,-201,-201,-201,-135,-206,-206,-29966,-29968,-29977,-29978,-29979,-29980,-29981,-29981,-29979,-29980]} 1. d4 {[%emt 0:00:08]} e6 {[%emt 0:00:13]} 2. c4 {[%emt 0:01:36]} Nf6 {[%emt 0:00:06]} 3. Nf3 {[%emt 0:00:26]} d5 {[%emt 0:00:09]} 4. e3 {[%emt 0:04:50]} c6 {[%emt 0:00:55]} 5. Nbd2 {[%emt 0:00:21]} Nbd7 {[%emt 0:01:25]} 6. Bd3 {[%emt 0:00:33]} a6 {[%emt 0:03:31]} 7. b3 {[%emt 0:07:20]} dxc4 {[%emt 0:04:49]} 8. bxc4 {[%emt 0:00:07]} Bd6 {[%emt 0:00:27]} 9. O-O {[%emt 0:00:14]} e5 {[%emt 0:00:50]} 10. Bb2 {[%emt 0:07:09]} Qe7 {[%emt 0:00:12]} 11. Ne4 {[%emt 0:02:10]} Nxe4 {[%emt 0:01:59]} 12. Bxe4 {[%emt 0:00:05]} O-O {[%emt 0:01:52]} 13. dxe5 {[%emt 0:01:03]} Bc7 {[%emt 0:04:54]} 14. Bc2 {[%emt 0:41:27]} Re8 {[%emt 0:11:52]} 15. e6 {[%emt 0:03:06]} fxe6 {[%emt 0:00:08]} 16. Qd3 {[%emt 0:03:30]} g6 {[%emt 0:01:25]} 17. Qc3 {[%emt 0:04:15]} e5 {[%emt 0:00:16]} 18. Nd2 {[%emt 0:00:29]} Bd6 {[%emt 0:11:41]} 19. Ne4 {[%emt 0:03:47]} Bb4 {[%emt 0:01:38]} 20. Qb3 {[%emt 0:00:19]} a5 {[%emt 0:08:40]} 21. a3 {[%emt 0:05:37]} Nc5 {[%emt 0:01:03]} 22. Qa2 {[%emt 0:00:06]} Bf5 {[%emt 0:00:55]} 23. axb4 {[%emt 0:01:38]} Bxe4 {[%emt 0:00:16]} 24. Bxe4 {[%emt 0:00:55]} Nxe4 {[%emt 0:00:08]} 25. bxa5 {[%emt 0:00:42]} Qf7 {[%emt 0:01:15]} 26. f4 {[%emt 0:08:01]} Nd2 {[%emt 0:03:19]} 27. fxe5 {[%emt 0:02:10]} Nxf1 {[%emt 0:00:27]} 28. Rxf1 {[%emt 0:00:05]} Qd7 {[%emt 0:00:41]} 29. Qb3 {[%emt 0:00:40]} Re6 {[%emt 0:01:21]} 30. c5 {[%emt 0:01:28]} Rf8 {[%emt 0:02:59]} 31. Rf6 {[%emt 0:00:23]} Rfe8 {[%emt 0:00:27]} 32. Bd4 {[%emt 0:00:28]} R8e7 {[%emt 0:00:32]} 33. h3 {[%emt 0:00:38]} Qd5 {[%emt 0:00:56]} 34. Qb2 {[%emt 0:01:11]} Rd7 {[%emt 0:03:23]} 35. Qf2 {[%emt 0:00:11]} Rxf6 {[%emt 0:02:58]} 36. exf6 {[%emt 0:00:13]} Kf7 {[%emt 0:01:47]} 37. Qf4 {[%emt 0:01:02]} Qe6 {[%emt 0:00:39]} 38. Qh6 {[%emt 0:00:33]} Kg8 {[%emt 0:00:45]} 39. Qf4 {[%emt 0:00:12]} Qe8 {[%emt 0:00:42]} 40. Kh1 {[%emt 0:00:28]} Qd8 {[%emt 0:01:50]} (40... Kf8 $11) 41. Qe4 {[%emt 0:10:01]} Kf7 {[%emt 0:01:37]} 42. a6 {[%emt 0:03:45]} bxa6 {[%emt 0:08:08]} 43. Qxc6 {[%emt 0:00:13]} Ra7 {[%emt 0:01:29]} (43... Rxd4 $1 $11 44. exd4 Qxd4) 44. Qe4 {[%emt 0:02:13]} (44. Kg1 $142) 44... Rc7 $16 {[%emt 0:02:09]} 45. Qb1 {[%emt 0:01:16]} (45. Qh4 $16 Ke6 46. Qf2) 45... Qd7 {[%emt 0:04:15]} 46. Qb3+ {[%emt 0:05:37]} Qe6 {[%emt 0:00:11]} 47. Qb8 {[%emt 0:00:10]} Qc6 $2 {[%emt 0:00:53][%mdl 8192]} (47... Qc8 $14 48. Qb3+ Qe6) 48. Qh8 $18 {[%emt 0:00:33]} Ke6 {[%emt 0:00:54]} 49. Qg8+ {[%emt 0:01:36]} Rf7 {[%emt 0:00:14]} 50. Qb8 {[%emt 0:00:49]} (50. Bc3 $18 {is more deadly.} a5 51. e4 (51. Bxa5 Qxc5 52. Qd8 Rf8 $17)) 50... Rb7 $16 {[%emt 0:02:24]} 51. Qg8+ $2 {[%emt 0:00:23][%mdl 8192]} (51. Qd8 $1 $16 {[%cal Rd8g8]}) 51... Rf7 $18 {[%emt 0:00:08]} 52. Bc3 {[%emt 0:05:39]} a5 {[%emt 0:04:02]} 53. Qd8 $2 {[%emt 0:02:40]} (53. Bxa5 Qxc5 54. Qd8 Rf8 $15 (54... Qxe3 $2 55. Qe8+ Kd5 56. Qxf7+ $18)) (53. Bb2 $18 {Threatens to win with Bd4.} a4 54. e4) 53... a4 $2 {[%emt 0:02:04]} (53... Rb7 $16) 54. Bd4 $2 {[%emt 0:01:55]} (54. e4 $18) 54... Kf5 $16 {[%emt 0:06:33]} (54... a3 $2 55. Qa5 $18) 55. Qb8 {[%emt 0:00:37]} Ke6 {[%emt 0:01:53] [#]} 56. e4 {[%emt 0:00:45]} (56. Qe5+ $1 $16 Kd7 57. Qf4) 56... Rb7 $2 {[%emt 0:02:01][%mdl 8192]} (56... Rxf6 $11 57. Bxf6 Kxf6) 57. Qg8+ $18 {[%emt 0:00:23]} Rf7 {[%emt 0:00:11]} 58. Qb8 $2 {[%emt 0:00:06]} (58. Bb2 $18 a3 59. Bc3 (59. Bxa3 Kxf6 60. Qh8+ Ke6 $11)) 58... Rb7 $16 {[%emt 0:01:05] [#]} 59. Qe5+ {[%emt 0:01:07]} (59. Qf8 $1 $16 {[%cal Rf8g8]}) 59... Kf7 $11 {[%emt 0:00:09]} 60. Qd5+ {[%emt 0:00:30]} (60. Qf4 $1 $11 {was the only way to keep the balance.}) 60... Qxd5 $17 {[%emt 0:00:06]} 61. exd5 {[%emt 0:00:04]} Rb1+ {[%emt 0:02:33]} 62. Kh2 {[%emt 0:00:08] [#]} Rc1 $1 {[%emt 0:00:05]} (62... Rd1 $2 63. c6 Rxd4 64. c7 $18) 63. c6 {[%emt 0:00:25]} a3 {[%emt 0:00:21]} 64. Be5 {[%emt 0:00:42]} a2 {[%emt 0:00:43]} 65. d6 {[%emt 0:00:21]} a1=Q {[%emt 0:07:29]} (65... a1=B 66. Bxa1 Rxc6 (66... Rxa1 $2 67. c7 $18) 67. Be5 $19) (65... a1=R $2 66. d7 Ra8 (66... Rh1+ 67. Kg3 $14) 67. c7 $18) 66. Bxa1 {[%emt 0:00:04]} Rxc6 $1 {[%emt 0:00:06]} (66... Rxa1 $2 67. c7 Kxf6 68. d7 $18 (68. c8=B $2 {is the wrong capture.} Rd1 $17) (68. c8=R Ke6 $11)) 67. Be5 {[%emt 0:00:15]} Rc5 {[%emt 0:00:06]} 68. Bb2 {[%emt 0:00:51]} Rd5 {[%emt 0:00:09]} 69. Kg3 {[%emt 0:00:41]} Rxd6 {[%emt 0:00:05]} 70. Kh2 {[%emt 0:00:30]} Rd3 {[%emt 0:00:28]} 71. Kg1 {[%emt 0:00:26]} Ke6 {[%emt 0:00:11]} 72. Kh2 {[%emt 0:00:36]} g5 {[%emt 0:00:53]} 73. Kg1 {[%emt 0:00:19]} h5 {[%emt 0:00:24]} 74. Kf1 {[%emt 0:00:22]} Rd7 {[%emt 0:00:48]} 75. Ke2 {[%emt 0:00:13]} Kf5 {[%emt 0:00:53]} 76. Ke3 {[%emt 0:01:17]} Kg6 {[%emt 0:00:56]} 77. Bc3 {[%emt 0:00:29]} Ra7 {[%emt 0:00:18]} 78. Bd4 {[%emt 0:00:21]} Ra4 {[%emt 0:00:15]} 79. Be5 {[%emt 0:00:56]} Ra5 {[%emt 0:00:22]} 80. Bd4 {[%emt 0:00:14]} Rf5 {[%emt 0:01:00]} 81. Ke4 {[%emt 0:00:18]} Rf1 {[%emt 0:00:19]} 82. Ke3 {[%emt 0:00:40]} Rf5 {[%emt 0:05:27]} 83. Ke4 $1 {[%emt 0:00:14]} Rf4+ {[%emt 0:00:47]} 84. Ke3 {[%emt 0:01:29]} Kf5 {[%emt 0:02:48]} 85. Kd3 {[%emt 0:00:08]} (85. g3 $17 {was necessary.} Re4+ 86. Kd3) 85... Ke6 $19 {[%emt 0:01:58]} 86. Bc3 $2 {[%emt 0:01:01]} (86. Ke3 $19) 86... Rf2 {[%emt 0:00:28]} 87. g4 {[%emt 0:00:30]} Rf3+ {[%emt 0:00:18]} 88. Kd2 {[%emt 0:00:12]} h4 {[%emt 0:00:10]} 89. Bd4 {[%emt 0:00:36]} Rxh3 {[%emt 0:00:09]} 90. Ke2 {[%emt 0:00:06]} Rg3 {[%emt 0:00:07]} 0-1